Workbook

Sheet Sheet1
B1: The Curvature Function
B2: for a Parametric Function
B4: This graphing utility lets you investigate
B5: the curvature function
B9: for any desired parametric function
C10: x = f(t), y = g(t)
B11: on any interval from t = a to t = b.
A14: Enter the first function in terms of t: x = f(t) = | F14: sin(3*t)
A16: and the second function in terms of t: y = g(t) = | F16: cos(2*t)
A19: Now enter the interval for t:
C20: tMin = | D20: 0
C21: tMax = | D21: 7
A25: Click each item below for suggestions and investigations
B26: Item 1
B27: Item 2
K29: Select a point t0 on the curve | O29: =N31 -> 4.06
A31: To access/download all the DIGMath Apps for Calculus | M31: 58 | N31: =D20+M31*(D21-D20)/100 -> 4.06
A32: Click this link: | C32: DIGMath for Calculus
A34: Created by: Sheldon P. Gordon | K34: The values of the functions at t0 = | O34: =N31 -> 4.06
A35: Farmingdale State College | L35: are x = f(t0) = | N35: =Sheet2!K2 -> -0.3992
A36: Development of this module was supported by the | L36: y = g(t0) = | N36: =Sheet2!K3 -> -0.2472
A37: NSF's Division of Undergraduate Education | K37: The value of the curvature there = | O37: =Sheet2!K4 -> 0.00172
A38: under grants DUE-0310123 and DUE-0442160.

Sheet Sheet2
A1: t | B1: f(t) | C1: slope | D1: f"(t) | E1: g(t) | F1: slope | G1: g"(t) | H1: Curvature | J1: t = | K1: =Sheet1!O29 -> 4.06 | L1: =K1 -> 4.06 | M1: =K1 -> 4.06
J2: x = | K2: =LOOKUP(K1,A2:A504,B2:B504) -> -0.3992347039 | L2: =0 -> 0 | M2: =K2 -> -0.3992347039
A3: =Sheet1!D20 -> 0.00 | B3: =SIN(3*t) -> 0 | C3: =(B4-B3)/0.0001 -> 419.0389454 | D3: =(C4-C3)/dx -> -52.68580547 | E3: =COS(2*t) -> 1 | F3: =(E4-E3)/0.0001 -> -3.904112853 | G3: =(F4-F3)/dx -> -558.6276887 | H3: =ABS(C3*G3-F3*D3)/(C3^2+F3^2)^(3/2) -> 0.003183747249 | J3: y = | K3: =LOOKUP(K1,A3:A505,E3:E505) -> -0.2472206184 | L3: =0 -> 0 | M3: =K3 -> -0.2472206184
A4: =A3+Sheet2!K$6 -> 0.01 | B4: 0.04190389454 | C4: =(B5-B4)/0.0001 -> 418.3028163 | D4: -105.2790574 | E4: 0.9996095887 | F4: =(E5-E4)/0.0001 -> -11.70929014 | G4: -557.9733199 | H4: =ABS(C4*G4-F4*D4)/(C4^2+F4^2)^(3/2) -> 0.003201911707 | J4: curvature = | K4: =LOOKUP(K1,A3:A503,H3:H503) -> 0.001724145077 | L4: =0 -> 0 | M4: =K4 -> 0.001724145077
A5: =A4+Sheet2!K$6 -> 0.03 | B5: 0.08373417617 | C5: 416.8318515 | D5: -157.6873647 | E5: 0.9984386597 | F5: -19.50532455 | G5: -556.8832729 | H5: 0.003236936709
A6: =A5+Sheet2!K$6 -> 0.04 | B6: 0.1254173613 | C6: 414.6286348 | D6: -209.8186614 | E6: 0.9964881272 | F6: -27.28612876 | G6: -555.3583988 | H6: 0.003289314642 | J6: delta x = | K6: =(Sheet1!D21-Sheet1!D20)/501 -> 0.01397205589
A7: =A6+Sheet2!K$6 -> 0.06 | B7: 0.1668802248 | C7: 411.6970367 | D7: -261.5813681 | E7: 0.9937595144 | F7: -35.04562735 | G7: -553.3998884 | H7: 0.003359791581
A8: =A7+Sheet2!K$6 -> 0.07 | B8: 0.2080499285 | C8: 408.0422072 | D8: -312.8845526 | E8: 0.9902549516 | F8: -42.77776152 | G8: -551.0092709 | H8: 0.003449382588
A9: =A8+Sheet2!K$6 -> 0.08 | B9: 0.2488541492 | C9: 403.6705668 | D9: -363.6380904 | E9: 0.9859771755 | F9: -50.47649385 | G9: -548.1884129 | H9: 0.003559392335
A10: =A9+Sheet2!K$6 -> 0.10 | B10: 0.2892212059 | C10: 398.5897951 | D10: -413.7528223 | E10: 0.9809295261 | F10: -58.13581299 | G10: -544.939517 | H10: 0.003691441228 | J10: Tracing point
A11: =A10+Sheet2!K$6 -> 0.11 | B11: 0.3290801854 | C11: 392.8088175 | D11: -463.1407114 | E11: 0.9751159448 | F11: -65.74973838 | G11: -541.26512 | H11: 0.003847497102
A12: =A11+Sheet2!K$6 -> 0.13 | B12: 0.3683610671 | C12: 386.3377896 | D12: -511.7149975 | E12: 0.968540971 | F12: -73.31232488 | G12: -537.1680911 | H12: 0.004029912436 | J12: 0 | K12: 0
A13: =A12+Sheet2!K$6 -> 0.14 | B13: 0.4069948461 | C13: 379.188079 | D13: -559.3903499 | E13: 0.9612097385 | F13: -80.81766747 | G13: -532.6516291 | H13: 0.004241466703 | J13: -0.7945312347 | K13: -0.1922393156
A14: =A13+Sheet2!K$6 -> 0.15 | B14: 0.444913654 | C14: 371.3722458 | D14: -606.0830168 | E14: 0.9531279717 | F14: -88.2599058 | G14: -527.7192607 | H14: 0.004485412938
A15: =A14+Sheet2!K$6 -> 0.17 | B15: 0.4820508786 | C15: 362.90402 | D15: -651.7109729 | E15: 0.9443019811 | F15: -95.63322881 | G15: -522.3748373 | H15: 0.00476552676
A16: =A15+Sheet2!K$6 -> 0.18 | B16: 0.5183412806 | C16: 353.7982779 | D16: -696.1940632 | E16: 0.9347386583 | F16: -102.9318792 | G16: -516.6225317 | H16: 0.005086154719
A17: =A16+Sheet2!K$6 -> 0.20 | B17: 0.5537211084 | C17: 344.0710155 | D17: -739.4541439 | E17: 0.9244454703 | F17: -110.1501581 | G17: -510.4668356 | H17: 0.005452256801
A18: =A17+Sheet2!K$6 -> 0.21 | B18: 0.5881282099 | C18: 333.7393209 | D18: -781.4152197 | E18: 0.9134304545 | F18: -117.2824293 | G18: -503.9125555 | H18: 0.005869434941
A19: =A18+Sheet2!K$6 -> 0.22 | B19: 0.621502142 | C19: 322.8213438 | D19: -822.0035772 | E19: 0.9017022116 | F19: -124.3231237 | G19: -496.9648091 | H19: 0.006343935085
A20: =A19+Sheet2!K$6 -> 0.24 | B20: 0.6537842764 | C20: 311.3362639 | D20: -861.1479145 | E20: 0.8892698992 | F20: -131.2667437 | G20: -489.6290214 | H20: 0.00688260439
A21: =A20+Sheet2!K$6 -> 0.25 | B21: 0.6849179028 | C21: 299.3042571 | D21: -898.7794665 | E21: 0.8761432249 | F21: -138.1078678 | G21: -481.9109203 | H21: 0.007492777163
A22: =A21+Sheet2!K$6 -> 0.27 | B22: 0.7148483285 | C22: 286.7464601 | D22: -934.8321255 | E22: 0.8623324381 | F22: -144.8411541 | G22: -473.8165322 | H22: 0.008182053034
A23: =A22+Sheet2!K$6 -> 0.28 | B23: 0.7435229745 | C23: 273.6849334 | D23: -969.2425576 | E23: 0.8478483227 | F23: -151.4613452 | G23: -465.3521775 | H23: 0.008957918964
A24: =A23+Sheet2!K$6 -> 0.29 | B24: 0.7708914678 | C24: 260.1426223 | D24: -1001.950314 | E24: 0.8327021882 | F24: -157.9632718 | G24: -456.5244653 | H24: 0.00982715457
A25: =A24+Sheet2!K$6 -> 0.31 | B25: 0.7969057301 | C25: 246.1433165 | D25: -1032.897936 | E25: 0.816905861 | F25: -164.3418572 | G25: -447.3402885 | H25: 0.01079495137
A26: =A25+Sheet2!K$6 -> 0.32 | B26: 0.8215200617 | C26: 231.7116088 | D26: -1062.031058 | E26: 0.8004716753 | F26: -170.5921207 | G26: -437.8068183 | H26: 0.01186367763
A27: =A26+Sheet2!K$6 -> 0.34 | B27: 0.8446912226 | C27: 216.8728515 | D27: -1089.298501 | E27: 0.7834124632 | F27: -176.709182 | G27: -427.9314987 | H27: 0.0130312426
A28: =A27+Sheet2!K$6 -> 0.35 | B28: 0.8663785077 | C28: 201.653112 | D28: -1114.652366 | E28: 0.765741545 | F28: -182.6882648 | G28: -417.7220405 | H28: 0.01428907265
A29: =A28+Sheet2!K$6 -> 0.36 | B29: 0.8865438189 | C29: 186.0791268 | D29: -1138.048112 | E29: 0.7474727185 | F29: -188.5247005 | G29: -407.1864155 | H29: 0.01561982507
A30: =A29+Sheet2!K$6 -> 0.38 | B30: 0.9051517316 | C30: 170.178255 | D30: -1159.44464 | E30: 0.7286202485 | F30: -194.2139319 | G30: -396.3328502 | H30: 0.01699514338
A31: =A30+Sheet2!K$6 -> 0.39 | B31: 0.9221695571 | C31: 153.9784297 | D31: -1178.804362 | E31: 0.7091988553 | F31: -199.7515166 | G31: -385.1698192 | H31: 0.01837399017
A32: =A31+Sheet2!K$6 -> 0.41 | B32: 0.9375674001 | C32: 137.5081093 | D32: -1196.093269 | E32: 0.6892237036 | F32: -205.1331308 | G32: -373.7060389 | H32: 0.01970232002
A33: =A32+Sheet2!K$6 -> 0.42 | B33: 0.951318211 | C33: 120.7962273 | D33: -1211.28099 | E33: 0.6687103905 | F33: -210.3545725 | G33: -361.9504606 | H33: 0.02091495544
A34: =A33+Sheet2!K$6 -> 0.43 | B34: 0.9633978337 | C34: 103.8721416 | D34: -1224.340844 | E34: 0.6476749333 | F34: -215.4117646 | G34: -349.9122631 | H34: 0.02194033526
A35: =A34+Sheet2!K$6 -> 0.45 | B35: 0.9737850479 | C35: 86.76558287 | D35: -1235.249889 | E35: 0.6261337568 | F35: -220.3007583 | G35: -337.6008462 | H35: 0.02270818457
A36: =A35+Sheet2!K$6 -> 0.46 | B36: 0.9824616062 | C36: 69.50660238 | D36: -1243.98896 | E36: 0.604103681 | F36: -225.0177362 | G36: -325.025823 | H36: 0.02315915265
A37: =A36+Sheet2!K$6 -> 0.48 | B37: 0.9894122664 | C37: 52.1255191 | D37: -1250.542707 | E37: 0.5816019074 | F37: -229.5590151 | G37: -312.1970123 | H37: 0.02325440919
A38: =A37+Sheet2!K$6 -> 0.49 | B38: 0.9946248183 | C38: 34.65286652 | D38: -1254.899615 | E38: 0.5586460059 | F38: -233.9210492 | G38: -299.1244311 | H38: 0.02298263836
A39: =A38+Sheet2!K$6 -> 0.50 | B39: 0.998090105 | C39: 17.11933896 | D39: -1257.052031 | E39: 0.5352539009 | F39: -238.1004325 | G39: -285.8182868 | H39: 0.02236229193
A40: =A39+Sheet2!K$6 -> 0.52 | B40: 0.9998020389 | C40: -0.444262267 | D40: -1256.996174 | E40: 0.5114438577 | F40: -242.0939016 | G40: -272.2889691 | H40: 0.02143835167
A41: =A40+Sheet2!K$6 -> 0.53 | B41: 0.9997576127 | C41: -18.00708306 | D41: -1254.732142 | E41: 0.4872344675 | F41: -245.8983383 | G41: -258.5470421 | H41: 0.02027460918
A42: =A41+Sheet2!K$6 -> 0.54 | B42: 0.9979569043 | C42: -35.53827066 | D42: -1250.263911 | E42: 0.4626446337 | F42: -249.510772 | G42: -244.6032357 | H42: 0.01894375281
A43: =A42+Sheet2!K$6 -> 0.56 | B43: 0.9944030773 | C43: -53.00702791 | D43: -1243.599333 | E43: 0.4376935565 | F43: -252.9283821 | G43: -230.4684376 | H43: 0.01751782217
A44: =A43+Sheet2!K$6 -> 0.57 | B44: 0.9891023745 | C44: -70.38266729 | D44: -1234.750114 | E44: 0.4124007183 | F44: -256.1485 | G44: -216.1536845 | H44: 0.01606092038
A45: =A44+Sheet2!K$6 -> 0.59 | B45: 0.9820641078 | C45: -87.63466489 | D45: -1223.731799 | E45: 0.3867858683 | F45: -259.1686113 | G45: -201.6701537 | H45: 0.01462497511
A46: =A45+Sheet2!K$6 -> 0.60 | B46: 0.9733006413 | C46: -104.732714 | D46: -1210.563745 | E46: 0.3608690072 | F46: -261.986358 | G46: -187.0291543 | H46: 0.01324835897
A47: =A46+Sheet2!K$6 -> 0.61 | B47: 0.9628273699 | C47: -121.6467783 | D47: -1195.269085 | E47: 0.3346703714 | F47: -264.5995398 | G47: -172.2421184 | H47: 0.01195661572
A48: =A47+Sheet2!K$6 -> 0.63 | B48: 0.950662692 | C48: -138.3471447 | D48: -1177.874685 | E48: 0.3082104174 | F48: -267.0061163 | G48: -157.3205919 | H48: 0.01076440065
A49: =A48+Sheet2!K$6 -> 0.64 | B49: 0.9368279776 | C49: -154.8044757 | D49: -1158.411104 | E49: 0.2815098058 | F49: -269.2042084 | G49: -142.2762259 | H49: 0.009677881516
A50: =A49+Sheet2!K$6 -> 0.66 | B50: 0.92134753 | C50: -170.9898604 | D50: -1136.912533 | E50: 0.2545893849 | F50: -271.1920998 | G50: -127.1207675 | H50: 0.008697090921
A51: =A50+Sheet2!K$6 -> 0.67 | B51: 0.904248544 | C51: -186.8748658 | D51: -1113.416739 | E51: 0.227470175 | F51: -272.9682382 | G51: -111.8660503 | H51: 0.007817956078
A52: =A51+Sheet2!K$6 -> 0.68 | B52: 0.8855610574 | C52: -202.4315867 | D52: -1087.964997 | E52: 0.2001733511 | F52: -274.5312369 | G52: -96.5239855 | H52: 0.007033905701
A53: =A52+Sheet2!K$6 -> 0.70 | B53: 0.8653178987 | C53: -217.6326944 | D53: -1060.602018 | E53: 0.1727202274 | F53: -275.8798755 | G53: -81.10655265 | H53: 0.006337059923
A54: =A53+Sheet2!K$6 -> 0.71 | B54: 0.8435546293 | C54: -232.4514851 | D54: -1031.375871 | E54: 0.1451322399 | F54: -277.0131007 | G54: -65.62578996 | H54: 0.005719061264
A55: =A54+Sheet2!K$6 -> 0.73 | B55: 0.8203094808 | C55: -246.8619264 | D55: -1000.337898 | E55: 0.1174309298 | F55: -277.9300279 | G55: -50.09378518 | H55: 0.005171621651
A56: =A55+Sheet2!K$6 -> 0.74 | B56: 0.7956232881 | C56: -260.8387035 | D56: -967.5426238 | E56: 0.08963792703 | F56: -278.6299411 | G56: -34.52266604 | H56: 0.004686858106
A57: =A56+Sheet2!K$6 -> 0.75 | B57: 0.7695394178 | C57: -274.3572631 | D57: -933.0476597 | E57: 0.06177493292 | F57: -279.1122937 | G57: -18.92459082 | H57: 0.004257478648
A58: =A57+Sheet2!K$6 -> 0.77 | B58: 0.7421036915 | C58: -287.3938571 | D58: -896.9136033 | E58: 0.03386370355 | F58: -279.3767092 | G58: -3.311738851 | H58: 0.003876866698
A59: =A58+Sheet2!K$6 -> 0.78 | B59: 0.7133643058 | C59: -299.9255841 | D59: -859.2039318 | E59: 0.005926032628 | F59: -279.422981 | G59: 12.303699 | H59: 0.003539099741
A60: =A59+Sheet2!K$6 -> 0.80 | B60: 0.6833717473 | C60: -311.9304295 | D60: -819.98489 | E60: -0.02201626547 | F60: -279.251073 | G60: 27.90952984 | H60: 0.003238927749
A61: =A60+Sheet2!K$6 -> 0.81 | B61: 0.6521787044 | C61: -323.3873042 | D61: -779.3253743 | E61: -0.04994137277 | F61: -278.8611195 | G61: 43.49356829 | H61: 0.002971728794
A62: =A61+Sheet2!K$6 -> 0.82 | B62: 0.619839974 | C62: -334.2760819 | D62: -737.2968115 | E62: -0.07782748472 | F62: -278.2534249 | G62: 59.04364598 | H62: 0.002733453477
A63: =A62+Sheet2!K$6 -> 0.84 | B63: 0.5864123658 | C63: -344.5776341 | D63: -693.9730336 | E63: -0.1056528272 | F63: -277.4284638 | G63: 74.54762106 | H63: 0.002520565551
A64: =A63+Sheet2!K$6 -> 0.85 | B64: 0.5519546024 | C64: -354.2738641 | D64: -649.4301478 | E64: -0.1333956736 | F64: -276.3868803 | G64: 89.99338767 | H64: 0.002329983283
A65: =A64+Sheet2!K$6 -> 0.87 | B65: 0.516527216 | C65: -363.3477384 | D65: -603.7464029 | E65: -0.1610343616 | F65: -275.1294876 | G65: 105.3688854 | H65: 0.002159024125
A66: =A65+Sheet2!K$6 -> 0.88 | B66: 0.4801924421 | C66: -371.7833169 | D66: -557.002052 | E66: -0.1885473104 | F66: -273.6572677 | G66: 120.6621088 | H66: 0.002005354044
A67: =A66+Sheet2!K$6 -> 0.89 | B67: =SIN(3*t) -> 0.4430141104 | C67: -379.5657807 | D67: =(C68-C67)/dx -> -509.2792112 | E67: =COS(2*t) -> -0.2159130371 | F67: -271.9713699 | G67: =(F68-F67)/dx -> 135.8611164 | H67: 0.00186694201
A68: =A67+Sheet2!K$6 -> 0.91 | B68: 0.4050575324 | C68: =(B69-B68)/0.0001 -> -386.6814583 | D68: -460.6617156 | E68: -0.2431101741 | F68: =(E69-E68)/0.0001 -> -270.0731108 | G68: 150.9540406 | H68: =ABS(C68*G68-F68*D68)/(C68^2+F68^2)^(3/2) -> 0.001742019695
A69: =A68+Sheet2!K$6 -> 0.92 | B69: 0.3663893865 | C69: -393.1178496 | D69: -411.2349719 | E69: -0.2701174852 | F69: -267.9639725 | G69: 165.9290965 | H69: 0.00162904613
A70: =A69+Sheet2!K$6 -> 0.94 | B70: 0.3270776016 | C70: -398.8636476 | D70: -361.0858085 | E70: -0.2969138825 | F70: -265.6456019 | G70: 180.7745912 | H70: 0.001526676925
A71: =A70+Sheet2!K$6 -> 0.95 | B71: 0.2871912368 | C71: -403.9087587 | D71: -310.3023228 | E71: -0.3234784427 | F71: -263.1198092 | G71: 195.4789331 | H71: 0.001433737603
A72: =A71+Sheet2!K$6 -> 0.96 | B72: 0.2468003609 | C72: -408.2443201 | D72: -258.9737265 | E72: -0.3497904236 | F72: -260.3885667 | G72: 210.0306405 | H72: 0.001349200563
A73: =A72+Sheet2!K$6 -> 0.98 | B73: 0.2059759289 | C73: -411.8627154 | D73: -207.1901891 | E73: -0.3758292803 | F73: -257.4540068 | G73: 224.4183513 | H73: 0.00127216524
A74: =A73+Sheet2!K$6 -> 0.99 | B74: 0.1647896574 | C74: -414.7575883 | D74: -155.0426791 | E74: -0.4015746809 | F74: -254.3184211 | G74: 238.6308312 | H74: 0.001201841026
A75: =A74+Sheet2!K$6 -> 1.01 | B75: 0.1233138986 | C75: -416.9238533 | D75: -102.6228043 | E75: -0.4270065231 | F75: -250.9842578 | G75: 252.6569828 | H75: 0.001137532596
A76: =A75+Sheet2!K$6 -> 1.02 | B76: 0.08162151323 | C76: -418.3577049 | D76: -50.02265126 | E76: -0.4521049488 | F76: -247.4541203 | G76: 266.485854 | H76: 0.00107862728
A77: =A76+Sheet2!K$6 -> 1.03 | B77: 0.03978574274 | C77: -419.0566242 | D77: 2.665376971 | E77: -0.4768503609 | F77: -243.730765 | G77: 280.1066471 | H77: 0.001024584211
A78: =A77+Sheet2!K$6 -> 1.05 | B78: -0.002119919673 | C78: -419.0193834 | D78: 55.34872291 | E78: -0.5012234374 | F78: -239.8170993 | G78: 293.5087267 | H78: 0.0009749249835
A79: =A78+Sheet2!K$6 -> 1.06 | B79: -0.04402185801 | C79: -418.2460479 | D79: 107.9348373 | E79: -0.5252051473 | F79: -235.716179 | G79: 306.6816279 | H79: 0.0009292256035
A80: =A79+Sheet2!K$6 -> 1.08 | B80: -0.0858464628 | C80: -416.7379763 | D80: 160.3313417 | E80: -0.5487767652 | F80: -231.4312061 | G80: 319.6150653 | H80: 0.0008871095487
A81: =A80+Sheet2!K$6 -> 1.09 | B81: -0.1275202604 | C81: -414.4978179 | D81: 212.4461908 | E81: -0.5719198858 | F81: -226.9655266 | G81: 332.2989399 | H81: 0.0008482417696
A82: =A81+Sheet2!K$6 -> 1.10 | B82: -0.1689700422 | C82: -411.5295078 | D82: 264.187834 | E82: -0.5946164385 | F82: -222.3226272 | G82: 344.7233481 | H82: 0.000812323498
A83: =A82+Sheet2!K$6 -> 1.12 | B83: -0.210122993 | C83: -407.8382606 | D83: 315.4653764 | E83: -0.6168487012 | F83: -217.5061333 | G83: 356.8785885 | H83: 0.0007790877434
A84: =A83+Sheet2!K$6 -> 1.13 | B84: -0.2509068191 | C84: -403.4305608 | D84: 366.1887382 | E84: -0.6385993145 | F84: -212.5198057 | G84: 368.7551701 | H84: 0.000748295377
A85: =A84+Sheet2!K$6 -> 1.15 | B85: -0.2912498751 | C85: -398.3141512 | D85: 416.2688134 | E85: -0.6598512951 | F85: -207.3675379 | G85: 380.3438192 | H85: 0.0007197317155
A86: =A85+Sheet2!K$6 -> 1.16 | B86: -0.3310812903 | C86: -392.4980201 | D86: 465.6176258 | E86: -0.6805880489 | F86: -202.0533528 | G86: 391.6354874 | H86: 0.0006932035303
A87: =A86+Sheet2!K$6 -> 1.17 | B87: -0.3703310923 | C87: -385.9923846 | D87: 514.1484842 | E87: -0.7007933842 | F87: -196.5813999 | G87: 402.6213577 | H87: 0.0006685364178
A88: =A87+Sheet2!K$6 -> 1.19 | B88: -0.4089303307 | C88: -378.8086733 | D88: 561.7761338 | E88: -0.7204515241 | F88: -190.9559518 | G88: 413.2928522 | H88: 0.0006455724736
A89: =A88+Sheet2!K$6 -> 1.20 | B89: -0.4468111981 | C89: -370.9595057 | D89: 608.4169069 | E89: -0.7395471193 | F89: -185.1814009 | G89: 423.6416382 | H89: 0.0006241682201
A90: =A89+Sheet2!K$6 -> 1.22 | B90: -0.4839071486 | C90: -362.4586707 | D90: 653.9888692 | E90: -0.7580652594 | F90: -179.2622563 | G90: 433.6596354 | H90: 0.0006041927427
A91: =A90+Sheet2!K$6 -> 1.23 | B91: -0.5201530157 | C91: -353.3211017 | D91: 698.411964 | E91: -0.775991485 | F91: -173.2031396 | G91: 443.3390213 | H91: 0.0005855259911
A92: =A91+Sheet2!K$6 -> 1.24 | B92: -0.5554851259 | C92: -343.5628507 | D92: 741.6081531 | E92: -0.793311799 | F92: -167.008782 | G92: 452.6722381 | H92: 0.0005680572051
A93: =A92+Sheet2!K$6 -> 1.26 | B93: -0.589841411 | C93: -333.2010601 | D93: 783.5015533 | E93: -0.8100126772 | F93: -160.6840202 | G93: 461.6519981 | H93: 0.0005516834236
A94: =A93+Sheet2!K$6 -> 1.27 | B94: -0.623161517 | C94: -322.2539326 | D94: 824.0185702 | E94: -0.8260810792 | F94: -154.2337927 | G94: 470.2712899 | H94: 0.00053630803
A95: =A94+Sheet2!K$6 -> 1.29 | B95: -0.6553869102 | C95: -310.7406991 | D95: 863.0880271 | E95: -0.8415044585 | F95: -147.663136 | G95: 478.5233833 | H95: 0.0005218392837
A96: =A95+Sheet2!K$6 -> 1.30 | B96: -0.6864609801 | C96: -298.681585 | D96: 900.6412905 | E96: -0.8562707721 | F96: -140.9771805 | G96: 486.4018348 | H96: 0.0005081887718
A97: =A96+Sheet2!K$6 -> 1.31 | B97: -0.7163291386 | C97: -286.0977745 | D97: 936.6123902 | E97: -0.8703684902 | F97: -134.1811469 | G97: 493.9004927 | H97: 0.0004952696999
A98: =A97+Sheet2!K$6 -> 1.33 | B98: -0.7449389161 | C98: -273.0113739 | D98: 970.9381356 | E98: -0.8837866048 | F98: -127.2803416 | G98: 501.013502 | H98: 0.0004829949069
A99: =A98+Sheet2!K$6 -> 1.34 | B99: -0.7722400535 | C99: -259.445372 | D99: 1003.558226 | E99: -0.896514639 | F99: -120.280153 | G99: 507.7353087 | H99: 0.0004712744417
A100: =A99+Sheet2!K$6 -> 1.36 | B100: -0.7981845907 | C100: -245.4236003 | D100: 1034.415358 | E100: -0.9085426543 | F100: -113.1860469 | G100: 514.0606641 | H100: 0.0004600124614
A101: =A100+Sheet2!K$6 -> 1.37 | B101: -0.8227269507 | C101: -230.9706911 | D101: 1063.455325 | E101: -0.919861259 | F101: -106.0035625 | G101: 519.9846294 | H101: 0.0004491030809
A102: =A101+Sheet2!K$6 -> 1.38 | B102: -0.8458240198 | C102: -216.1120339 | D102: 1090.627111 | E102: -0.9304616152 | F102: -98.73830822 | G102: 525.502579 | H102: 0.0004384245888
A103: =A102+Sheet2!K$6 -> 1.40 | B103: -0.8674352232 | C103: -200.873731 | D103: 1115.882984 | E103: -0.9403354461 | F103: -91.39595682 | G103: 530.6102043 | H103: 0.0004278310681
A104: =A103+Sheet2!K$6 -> 1.41 | B104: -0.8875225963 | C104: -185.2825516 | D104: 1139.178576 | E104: -0.9494750417 | F104: -83.98224139 | G104: 535.3035171 | H104: 0.0004171397887
A105: =A104+Sheet2!K$6 -> 1.43 | B105: -0.9060508515 | C105: -169.3658848 | D105: 1160.472964 | E105: -0.9578732659 | F105: -76.50295073 | G105: 539.5788529 | H105: 0.0004061114789
A106: =A105+Sheet2!K$6 -> 1.44 | B106: -0.9229874399 | C106: -153.1516917 | D106: 1179.728741 | E106: -0.965523561 | F106: -68.96392484 | G106: 543.4328734 | H106: 0.0003944181184
A107: =A106+Sheet2!K$6 -> 1.45 | B107: -0.9383026091 | C107: -136.6684558 | D107: 1196.912078 | E107: -0.9724199534 | F107: -61.37105036 | G107: 546.8625692 | H107: 0.0003815877802
A108: =A107+Sheet2!K$6 -> 1.47 | B108: -0.9519694547 | C108: -119.9451334 | D108: 1211.992791 | E108: -0.9785570585 | F108: -53.73025598 | G108: 549.8652623 | H108: 0.0003669047254
A109: =A108+Sheet2!K$6 -> 1.48 | B109: -0.963963968 | C109: -103.0111023 | D109: 1224.944387 | E109: -0.9839300841 | F109: -46.04750781 | G109: 552.4386083 | H109: 0.000349215789
A110: =A109+Sheet2!K$6 -> 1.50 | B110: -0.9742650783 | C110: -85.89611091 | D110: 1235.744113 | E110: -0.9885348349 | F110: -38.3288047 | G110: 554.5805977 | H110: 0.0003265222675
A111: =A110+Sheet2!K$6 -> 1.51 | B111: -0.9828546894 | C111: -68.63022511 | D111: 1244.372997 | E111: -0.9923677153 | F111: -30.58017359 | G111: 556.2895581 | H111: 0.000295022142
A112: =A111+Sheet2!K$6 -> 1.52 | B112: -0.9897177119 | C112: -51.24377604 | D112: 1250.815882 | E112: -0.9954257327 | F112: -22.80766479 | G112: 557.564155 | H112: 0.0002465249114
A113: =A112+Sheet2!K$6 -> 1.54 | B113: -0.9948420895 | C113: -33.76730663 | D113: 1255.061449 | E113: -0.9977064992 | F113: -15.01734726 | G113: 558.4033932 | H113: 0.0001601851986
A114: =A113+Sheet2!K$6 -> 1.55 | B114: -0.9982188201 | C114: -16.23151793 | D114: 1257.102239 | E114: -0.9992082339 | F114: -7.215303842 | G114: 558.8066175 | H114: 1.694671479e-05
A115: =A114+Sheet2!K$6 -> 1.56 | B115: -0.9998419719 | C115: 1.332784805 | D115: 1256.934668 | E115: -0.9999297643 | F115: 0.5923734488 | G115: 558.773513 | H115: 0.04838704784
A116: =A115+Sheet2!K$6 -> 1.58 | B116: -0.9997086934 | C116: 18.89474623 | D116: 1254.559029 | E116: -0.9998705269 | F116: 8.399588201 | G116: 558.3041054 | H116: 0.001270799876
A117: =A116+Sheet2!K$6 -> 1.59 | B117: -0.9978192188 | C117: 36.4235151 | D117: 1249.979497 | E117: -0.9990305681 | F117: 16.20024436 | G117: 557.3987615 | H117: 0.0008279443874
A118: =A117+Sheet2!K$6 -> 1.61 | B118: -0.9941768673 | C118: 53.8882985 | D118: 1243.204117 | E118: -0.9974105437 | F118: 23.98825101 | G118: 556.058188 | H118: 0.0006954781364
A119: =A118+Sheet2!K$6 -> 1.62 | B119: -0.9887880375 | C119: 71.2584159 | D119: 1234.244789 | E119: -0.9950117186 | F119: 31.75752709 | G119: 554.2834317 | H119: 0.0006334949559
A120: =A119+Sheet2!K$6 -> 1.63 | B120: -0.9816621959 | C120: 88.50335308 | D120: 1223.117255 | E120: -0.9918359659 | F120: 39.50200618 | G120: 552.0758784 | H120: 0.0005986285631
A121: =A120+Sheet2!K$6 -> 1.65 | B121: -0.9728118606 | C121: 105.5928157 | D121: 1209.84106 | E121: -0.9878857652 | F121: 47.21564121 | G121: 549.4372518 | H121: 0.0005771755572
A122: =A121+Sheet2!K$6 -> 1.66 | B122: -0.962252579 | C122: 122.4967826 | D122: 1194.439528 | E122: -0.9831642011 | F122: 54.89240919 | G122: 546.3696122 | H122: 0.0005634652075
A123: =A122+Sheet2!K$6 -> 1.68 | B123: -0.9500029007 | C123: 139.1855585 | D123: 1176.939715 | E123: -0.9776749602 | F123: 62.52631595 | G123: 542.8753549 | H123: 0.0005547364583
A124: =A123+Sheet2!K$6 -> 1.69 | B124: -0.9360843449 | C124: 155.6298259 | D124: 1157.372363 | E124: -0.9714223286 | F124: 70.11140075 | G124: 538.9572082 | H124: 0.0005494907087
A125: =A124+Sheet2!K$6 -> 1.70 | B125: -0.9205213623 | C125: 171.8006973 | D125: 1135.771845 | E125: -0.9644111885 | F125: 77.64174098 | G125: 534.6182316 | H125: 0.0005468500169
A126: =A125+Sheet2!K$6 -> 1.72 | B126: -0.9033412926 | C126: 187.669765 | D126: 1112.176108 | E126: -0.9566470144 | F126: 85.1114568 | G126: 529.861813 | H126: 0.0005462712527
A127: =A126+Sheet2!K$6 -> 1.73 | B127: -0.8845743161 | C127: 203.2091517 | D127: 1086.626603 | E127: -0.9481358688 | F127: 92.51471566 | G127: 524.6916663 | H127: 0.0005474055297
A128: =A127+Sheet2!K$6 -> 1.75 | B128: -0.8642534009 | C128: 218.3915593 | D128: 1059.168212 | E128: -0.9388843972 | F128: 99.84573695 | G128: 519.1118286 | H128: 0.0005500235981
A129: =A128+Sheet2!K$6 -> 1.76 | B129: -0.842414245 | C129: 233.1903168 | D129: 1029.849171 | E129: -0.9288998235 | F129: 107.0987964 | G129: 513.1266566 | H129: 0.0005539737849
A130: =A129+Sheet2!K$6 -> 1.77 | B130: -0.8190952133 | C130: 247.579427 | D130: 998.7209871 | E130: -0.9181899439 | F130: 114.2682307 | G130: 506.7408237 | H130: 0.0005591571123
A131: =A130+Sheet2!K$6 -> 1.79 | B131: =SIN(3*t) -> -0.7943372706 | C131: 261.5336124 | D131: =(C132-C131)/dx -> 965.8383418 | E131: =COS(2*t) -> -0.9067631208 | F131: 121.3484419 | G131: =(F132-F131)/dx -> 499.9593162 | H131: 0.0005655120024
A132: =A131+Sheet2!K$6 -> 1.80 | B132: -0.7681839093 | C132: =(B133-B132)/0.0001 -> 275.0283597 | D132: 931.2590006 | E132: -0.8946282766 | F132: =(E133-E132)/0.0001 -> 128.3339014 | G132: 492.7874291 | H132: =ABS(C132*G132-F132*D132)/(C132^2+F132^2)^(3/2) -> 0.0005730045912
A133: =A132+Sheet2!K$6 -> 1.82 | B133: -0.7406810734 | C133: 288.0399625 | D133: 895.0437094 | E133: -0.8817948865 | F133: 135.2191549 | G133: 485.2307625 | H133: 0.0005816224672
A134: =A133+Sheet2!K$6 -> 1.83 | B134: -0.7118770771 | C134: 300.5455632 | D134: 857.2560879 | E134: -0.868272971 | F134: 141.9988262 | G134: 477.2952168 | H134: 0.0005913705802
A135: =A134+Sheet2!K$6 -> 1.84 | B135: -0.6818225208 | C135: 312.5231932 | D135: 817.9625178 | E135: -0.8540730883 | F135: 148.6676216 | G135: 468.9869882 | H135: 0.0006022685769
A136: =A135+Sheet2!K$6 -> 1.86 | B136: -0.6505702015 | C136: 323.9518112 | D136: 777.2320265 | E136: -0.8392063262 | F136: 155.2203341 | G136: 460.3125639 | H136: 0.0006143491087
A137: =A136+Sheet2!K$6 -> 1.87 | B137: -0.6181750204 | C137: 334.8113405 | D137: 735.1361656 | E137: -0.8236842928 | F137: 161.6518469 | G137: 451.2787173 | H137: 0.0006276568289
A138: =A137+Sheet2!K$6 -> 1.89 | B138: -0.5846938863 | C138: 345.0827041 | D138: 691.7488852 | E138: -0.8075191081 | F138: 167.9571384 | G138: 441.892502 | H138: 0.0006422478994
A139: =A138+Sheet2!K$6 -> 1.90 | B139: -0.5501856159 | C139: 354.7478582 | D139: 647.1464041 | E139: -0.7907233942 | F139: 174.1312851 | G139: 432.161247 | H139: 0.0006581898924
A140: =A139+Sheet2!K$6 -> 1.91 | B140: -0.5147108301 | C140: 363.7898239 | D140: 601.4070758 | E140: -0.7733102657 | F140: 180.1694662 | G140: 422.0925509 | H140: 0.0006755620157
A141: =A140+Sheet2!K$6 -> 1.93 | B141: -0.4783318477 | C141: 372.1927172 | D141: 554.6112509 | E141: -0.7552933191 | F141: 186.0669669 | G141: 411.6942753 | H141: 0.0006944556175
A142: =A141+Sheet2!K$6 -> 1.94 | B142: -0.4411125759 | C142: 379.9417766 | D142: 506.8411361 | E142: -0.7366866224 | F142: 191.8191823 | G142: 400.9745395 | H142: 0.000714974949
A143: =A142+Sheet2!K$6 -> 1.96 | B143: -0.4031183983 | C143: 387.0233893 | D143: 458.1806495 | E143: -0.7175047042 | F143: 197.421621 | G143: 389.9417138 | H143: 0.0007372381747
A144: =A143+Sheet2!K$6 -> 1.97 | B144: -0.3644160594 | C144: 393.4251149 | D144: 408.7152733 | E144: -0.6977625421 | F144: 202.8699084 | G144: 378.6044128 | H144: 0.0007613786348
A145: =A144+Sheet2!K$6 -> 1.98 | B145: -0.3250735479 | C145: 399.1357076 | D145: 358.5319037 | E145: -0.6774755512 | F145: 208.1597905 | G145: 366.9714889 | H145: 0.0007875463728
A146: =A145+Sheet2!K$6 -> 2.00 | B146: -0.2851599771 | C146: 404.1451354 | D146: 307.7186984 | E146: -0.6566595722 | F146: 213.2871366 | G146: 355.0520254 | H146: 0.0008159099486
A147: =A146+Sheet2!K$6 -> 2.01 | B147: -0.2447454636 | C147: 408.4445982 | D147: 256.3649212 | E147: -0.6353308585 | F147: 218.2479434 | G147: 342.8553293 | H147: 0.0008466585704
A148: =A147+Sheet2!K$6 -> 2.03 | B148: -0.2039010037 | C148: 412.0265432 | D148: 204.5607857 | E148: -0.6135060642 | F148: 223.0383372 | G148: 330.3909239 | H148: 0.0008800045809
A149: =A148+Sheet2!K$6 -> 2.04 | B149: -0.1626983494 | C149: 414.884678 | D149: 152.3972966 | E149: -0.5912022305 | F149: 227.6545776 | G149: 317.6685419 | H149: 0.0009161863496
A150: =A149+Sheet2!K$6 -> 2.05 | B150: -0.1212098816 | C150: 417.0139815 | D150: 99.96609003 | E150: -0.5684367727 | F150: 232.0930602 | G150: 304.6981171 | H150: 0.0009554716277
A151: =A150+Sheet2!K$6 -> 2.07 | B151: -0.07950848348 | C151: 418.4107133 | D151: 47.35927224 | E151: -0.5452274667 | F151: 236.3503194 | G151: 291.4897772 | H151: 0.0009981614376
A152: =A151+Sheet2!K$6 -> 2.08 | B152: -0.03766741215 | C152: 419.0724197 | D152: -5.330741962 | E152: -0.5215924348 | F152: 240.4230308 | G152: 278.0538354 | H152: 0.00104459458
A153: =A152+Sheet2!K$6 -> 2.10 | B153: 0.004239829818 | C153: 418.9979383 | D153: -58.01139161 | E153: -0.4975501317 | F153: 244.3080146 | G153: 264.400783 | H153: 0.001095152859
A154: =A153+Sheet2!K$6 -> 2.11 | B154: 0.04613962365 | C154: 418.1873999 | D154: -110.5901322 | E154: -0.4731193302 | F154: 248.0022371 | G154: 250.5412804 | H154: 0.001150267141
A155: =A154+Sheet2!K$6 -> 2.12 | B155: 0.08795836363 | C155: 416.6422284 | D155: -162.9745982 | E155: -0.4483191065 | F155: 251.5028138 | G155: 236.4861496 | H155: 0.001210424387
A156: =A155+Sheet2!K$6 -> 2.14 | B156: 0.1296225865 | C156: 414.3651382 | D156: -215.0727655 | E156: -0.4231688251 | F156: 254.8070115 | G156: 222.246365 | H156: 0.001276175821
A157: =A156+Sheet2!K$6 -> 2.15 | B157: 0.1710591003 | C157: 411.3601295 | D157: -266.7931127 | E157: -0.397688124 | F157: 257.9122502 | G157: 207.8330455 | H157: 0.001348146419
A158: =A157+Sheet2!K$6 -> 2.17 | B158: 0.2121951132 | C158: 407.6324812 | D158: -318.0447824 | E158: -0.371896899 | F158: 260.8161051 | G158: 193.2574452 | H158: 0.001427045945
A159: =A158+Sheet2!K$6 -> 2.18 | B159: 0.2529583613 | C159: 403.1887417 | D159: -368.7377403 | E159: -0.3458152884 | F159: 263.5163089 | G159: 178.5309451 | H159: 0.001513681783
A160: =A159+Sheet2!K$6 -> 2.19 | B160: 0.2932772355 | C160: 398.0367174 | D160: -418.7829337 | E160: -0.3194636576 | F160: 266.0107533 | G160: 163.6650441 | H160: 0.001608973869
A161: =A160+Sheet2!K$6 -> 2.21 | B161: 0.3330809073 | C161: 392.1854588 | D161: -468.0924478 | E161: -0.2928625822 | F161: 268.2974904 | G161: 148.6713497 | H161: 0.001713972041
A162: =A161+Sheet2!K$6 -> 2.22 | B162: 0.3722994531 | C162: 385.645245 | D162: -516.5796602 | E162: -0.2660328332 | F162: 270.3747348 | G162: 133.5615694 | H162: 0.0018298762
A163: =A162+Sheet2!K$6 -> 2.24 | B163: 0.4108639776 | C163: 378.4275651 | D163: -564.1593931 | E163: -0.2389953597 | F163: 272.2408645 | G163: 118.3475011 | H163: 0.001958059678
A164: =A163+Sheet2!K$6 -> 2.25 | B164: 0.4487067342 | C164: 370.5450985 | D164: -610.7480627 | E164: -0.2117712733 | F164: 273.8944224 | G164: 103.0410245 | H164: 0.002100096275
A165: =A164+Sheet2!K$6 -> 2.26 | B165: 0.485761244 | C165: 362.0116925 | D165: -656.2638264 | E165: -0.184381831 | F165: 275.3341174 | G165: 87.65409108 | H165: 0.002257791401
A166: =A165+Sheet2!K$6 -> 2.28 | B166: 0.5219624133 | C166: 352.8423376 | D166: -700.6267262 | E166: -0.1568484193 | F166: 276.5588252 | G166: 72.19871539 | H166: 0.002433217773
A167: =A166+Sheet2!K$6 -> 2.29 | B167: 0.557246647 | C167: 343.0531418 | D167: -743.7588296 | E167: -0.1291925367 | F167: 277.5675897 | G167: 56.68696532 | H167: 0.002628756005
A168: =A167+Sheet2!K$6 -> 2.31 | B168: 0.5915519612 | C168: 332.6613019 | D168: -785.5843659 | E168: -0.1014357778 | F168: 278.3596232 | G168: 41.13095279 | H168: 0.002847140282
A169: =A168+Sheet2!K$6 -> 2.32 | B169: 0.6248180914 | C169: 321.6850732 | D169: -826.02986 | E169: -0.07359981545 | F169: 278.9343072 | G169: 25.54282427 | H169: 0.003091508995
A170: =A169+Sheet2!K$6 -> 2.33 | B170: 0.6569865987 | C170: 310.1437379 | D170: -865.0242609 | E170: -0.04570638474 | F170: 279.2911929 | G170: 9.934751347 | H170: 0.003365459649
A171: =A170+Sheet2!K$6 -> 2.35 | B171: 0.6880009725 | C171: 298.0575706 | D171: -902.4990669 | E171: -0.01777726545 | F171: 279.4300018 | G171: -5.681078857 | H171: 0.003673106529
A172: =A171+Sheet2!K$6 -> 2.36 | B172: 0.7178067296 | C172: 285.4478032 | D172: -938.3884457 | E172: 0.01016573474 | F172: 279.3506255 | G172: -21.29247315 | H172: 0.004019138218
A173: =A172+Sheet2!K$6 -> 2.38 | B173: 0.7463515099 | C173: 272.3365873 | D173: -972.6293501 | E173: 0.03810079728 | F173: 279.0531258 | G173: -36.88724179 | H173: 0.004408869997
A174: =A173+Sheet2!K$6 -> 2.39 | B174: 0.7735851686 | C174: 258.7469557 | D174: -1005.161629 | E174: 0.06600610987 | F174: 278.5377352 | G174: -52.45320805 | H174: 0.004848283134
A175: =A174+Sheet2!K$6 -> 2.40 | B175: 0.7994598642 | C175: 244.7027813 | D175: -1035.928132 | E175: 0.09385988339 | F175: 277.8048561 | G175: -67.97821765 | H175: 0.00534403861
A176: =A175+Sheet2!K$6 -> 2.42 | B176: 0.8239301423 | C176: 230.2287355 | D176: -1064.874812 | E176: 0.121640369 | F176: 276.8550606 | G176: -83.45014833 | H176: 0.005903446746
A177: =A176+Sheet2!K$6 -> 2.43 | B177: 0.8469530159 | C177: 215.3502451 | D177: -1091.950819 | E177: 0.1493258751 | F177: 275.6890905 | G177: -98.85691925 | H177: 0.006534365844
A178: =A177+Sheet2!K$6 -> 2.45 | B178: 0.8684880404 | C178: 200.0934472 | D178: -1117.108586 | E178: 0.1768947841 | F178: 274.3078561 | G178: -114.1865005 | H178: 0.007244992452
A179: =A178+Sheet2!K$6 -> 2.46 | B179: 0.8884973851 | C179: 184.4851436 | D179: -1140.303921 | E179: 0.2043255697 | F179: 272.7124359 | G179: -129.4269223 | H179: 0.008043493283
A180: =A179+Sheet2!K$6 -> 2.47 | B180: 0.9069458995 | C180: 168.5527535 | D180: -1161.496074 | E180: 0.2315968133 | F180: 270.9040757 | G180: -144.5662846 | H180: 0.008937415911
A181: =A180+Sheet2!K$6 -> 2.49 | B181: 0.9238011748 | C181: 152.3242655 | D181: -1180.647818 | E181: 0.2586872209 | F181: 268.8841875 | G181: -159.5927663 | H181: 0.00993280553
A182: =A181+Sheet2!K$6 -> 2.50 | B182: 0.9390336014 | C182: 135.8281882 | D182: -1197.725509 | E182: 0.2855756396 | F182: 266.6543485 | G182: -174.4946344 | H182: 0.01103295536
A183: =A182+Sheet2!K$6 -> 2.51 | B183: 0.9526164202 | C183: 119.0935004 | D183: -1212.699146 | E183: 0.3122410745 | F183: 264.2162997 | G183: -189.2602532 | H183: 0.01223674008
A184: =A183+Sheet2!K$6 -> 2.53 | B184: 0.9645257702 | C184: 102.1496002 | D184: -1225.542424 | E184: 0.3386627045 | F184: 261.5719449 | G184: -203.8780933 | H184: 0.01353654137
A185: =A184+Sheet2!K$6 -> 2.54 | B185: 0.9747407302 | C185: 85.02625293 | D185: -1236.232783 | E185: 0.3648198989 | F185: 258.7233487 | G185: -218.3367407 | H185: 0.01491589054
A186: =A185+Sheet2!K$6 -> 2.56 | B186: 0.9832433555 | C186: 67.7535394 | D186: -1244.751442 | E186: 0.3906922338 | F186: 255.6727356 | G186: -232.6249059 | H186: 0.01634713701
A187: =A186+Sheet2!K$6 -> 2.57 | B187: 0.9900187095 | C187: 50.36180269 | D187: -1251.083436 | E187: 0.4162595074 | F187: 252.4224874 | G187: -246.7314323 | H187: 0.0177896901
A188: =A187+Sheet2!K$6 -> 2.58 | B188: 0.9950548897 | C188: 32.881595 | D188: -1255.217642 | E188: 0.4415017561 | F188: 248.9751421 | G188: -260.6453053 | H188: 0.01918961509
A189: =A188+Sheet2!K$6 -> 2.60 | B189: 0.9983430492 | C189: 15.34362396 | D189: -1257.146797 | E189: 0.4663992703 | F189: 245.3333913 | G189: -274.3556605 | H189: 0.02048146611
A190: =A189+Sheet2!K$6 -> 2.61 | B190: 0.9998774116 | C190: -2.221301352 | D190: -1256.867513 | E190: 0.4909326094 | F190: 241.5000787 | G190: -287.8517926 | H190: 0.02159303721
A191: =A190+Sheet2!K$6 -> 2.63 | B191: 0.9996552815 | C191: -19.78232448 | D191: -1254.380279 | E191: 0.5150826173 | F191: 237.4781973 | G191: -301.1231635 | H191: 0.02245307608
A192: =A191+Sheet2!K$6 -> 2.64 | B192: 0.997677049 | C192: -37.30859585 | D192: -1249.689466 | E192: 0.538830437 | F192: 233.2708877 | G192: -314.1594107 | H192: 0.02300098416
A193: =A192+Sheet2!K$6 -> 2.65 | B193: 0.9939461895 | C193: -54.76932691 | D193: -1242.803313 | E193: 0.5621575258 | F193: 228.8814348 | G193: -326.9503551 | H193: 0.02319646655
A194: =A193+Sheet2!K$6 -> 2.67 | B194: 0.9884692568 | C194: -72.13384427 | D194: -1233.733919 | E194: 0.5850456693 | F194: 224.3132662 | G194: -339.4860093 | H194: 0.02302656024
A195: =A194+Sheet2!K$6 -> 2.68 | B195: =SIN(3*t) -> 0.9812558723 | C195: -89.37164353 | D195: =(C196-C195)/dx -> -1222.497213 | E195: =COS(2*t) -> 0.6074769959 | F195: 219.5699487 | G195: =(F196-F195)/dx -> -351.7565852 | H195: 0.02250791926
A196: =A195+Sheet2!K$6 -> 2.70 | B196: 0.972318708 | C196: =(B197-B196)/0.0001 -> -106.4524429 | D196: -1209.112938 | E196: 0.6294339908 | F196: =(E197-E196)/0.0001 -> 214.655186 | G196: -363.7525016 | H196: =ABS(C196*G196-F196*D196)/(C196^2+F196^2)^(3/2) -> 0.02168364133
A197: =A196+Sheet2!K$6 -> 2.71 | B197: 0.9616734637 | C197: -123.3462365 | D197: -1193.604604 | E197: 0.6508995094 | F197: 209.5728157 | G197: -375.4643918 | H197: 0.02061566628
A198: =A197+Sheet2!K$6 -> 2.72 | B198: 0.9493388401 | C198: -140.0233467 | D198: -1175.999456 | E198: 0.671856791 | F198: 204.3268063 | G198: -386.883111 | H198: 0.01937502389
A199: =A198+Sheet2!K$6 -> 2.74 | B199: 0.9353365054 | C199: -156.4544768 | D199: -1156.32842 | E199: 0.6922894716 | F199: 198.9212538 | G199: -397.9997431 | H199: 0.01803244935
A200: =A199+Sheet2!K$6 -> 2.75 | B200: 0.9196910577 | C200: -172.6107621 | D200: -1134.626053 | E200: 0.712181597 | F200: 193.3603792 | G200: -408.805608 | H200: 0.01665120876
... 806 more rows

Sheet Defining Function
A1: Defining a Function in Excel
A3: Computers have very specific rules you must follow when defining a function. If you don't, the program will either not work at all or will work incorrectly.
A5: 1. The Variable used should be the one named in the instruction, usually x, though sometimes y, t, Q (for an angle theta),
A6: or even x and y (for a function of two variables).
A8: 2. Order of Operations: There five arithmetic operations, addition (+), subtraction (-), multiplication (*), division (/), and exponentiation or power (^). When computers see any of these operation symbols, they perform the indicated steps in a very particular order. First, the power is done. Second, products and quotients of adjacent terms is done. Third, and last, sums and differences of adjacent terms are done. So, in 10*x^3 + 5*x – 7, say with x = 2, the first pass only calculates 2^3 and ignores the multiplications and the sums and differences to calculate 2^3 = 8. The second pass looks at 10*8 + 5*2 – 7 and only does the multiplications, so it produces 80 + 10 - 7. The third pass looks at the +’s and –‘s to produce 80 + 10 – 7 = 83.
A10: 3. Parentheses If you need an operation involving more than two adjacent terms, as in Ö4^3 + 6^2, the computer would take the square root of 4 to produce 2^3 + 6^2; it would then cube the 2 and square the 6 to produce 8 + 36; and finally it would add the 8 and the 36 to get 44. If you actually wanted the square root of the entire expression, you would need to use parentheses, as in Ö(4^3 + 6^2) to tell the computer to do all the operations inside the parentheses before taking the square root. Therefore, it would calculate (4^3 + 6^2) = 64 + 36 = 100 and then take the square root of Ö100 = 10.
A12: 4. Built-In Functions Computer programs have built-in functions for most common algebraic functions. In Excel, the square root function is denoted by SQRT(…), so SQRT(100) = 10. Alternatively, you could enter it as 100^.5 or 100^(1/2); notice that parentheses are needed to have the ½ done first. The common trig functions are SIN (…), COS (…), and TAN (…), where the arguments are automatically interpreted as being in radians, not degrees. The logarithm to the base 10 is represented by LOG (…) and the logarithm with the base e, known as the natural logarithm, is LN (…). The corresponding exponential function with base e is EXP (x). If x is the variable, then each of these would be SQRT (x), SIN (x), COS (x), TAN (x), LOG (x) (for log with base 10 ), LN (x) (for log with base e ), and EXP (x).

Sheet Sheet3
